lending/lending_fUSD_20250224
["ID","MTS","AMOUNT","RATE_DAILY","PERIOD"]
[354255344,1740367853700,-973.6,0.00016684,2]
[354255345,1740367853710,-779.55,0.00016684,2]
[354255346,1740367853720,-500.0,0.00016684,2]
[354255347,1740367853729,-512.61,0.00016684,2]
[354255348,1740367853739,-503.17,0.00016684,2]
[354255349,1740367853748,-560.46,0.00016684,2]
[354255350,1740367853757,-500.0,0.00016684,2]
[354255351,1740367853767,-500.0,0.00016684,2]
[354255352,1740367853776,-500.0,0.00016684,2]
[354255353,1740367853786,-544.94,0.00016684,2]
[354255354,1740367853796,-500.0,0.00016684,2]
[354255355,1740367853805,-568.9,0.00016684,2]
[354255356,1740367853815,-500.0,0.00016684,2]
[354255357,1740367853825,-1249.6,0.00016684,2]
[354255358,1740367853835,-500.0,0.00016684,2]
[354255359,1740367853844,-971.07,0.00016684,2]
[354255360,1740367853858,-500.0,0.00016684,2]
[354255361,1740367853868,-500.0,0.00016684,2]
[354255362,1740367853878,-555.63,0.00016684,2]
[354255363,1740367853887,-500.0,0.00016684,2]
[354255364,1740367853897,-632.08,0.00016684,2]
[354255365,1740367853906,-500.0,0.00016684,2]
[354255366,1740367853915,-986.07,0.00016684,2]
[354255367,1740367853925,-894.59,0.00016684,2]
[354255368,1740367853936,-500.0,0.00016684,2]
[354255369,1740367853946,-500.0,0.00016684,2]
[354255370,1740367853956,-1038.93,0.00016684,2]
[354255371,1740367853965,-1462.25,0.00016684,2]
[354255372,1740367853975,-910.72,0.00016684,2]
[354255373,1740367853984,-799.72,0.00016684,2]
[354255374,1740367853993,-902.36,0.00016684,2]
[354255375,1740367854002,-500.0,0.00016684,2]
[354255376,1740367854012,-500.0,0.00016684,2]
[354255377,1740367854021,-500.0,0.00016684,2]
[354255378,1740367854031,-674.92,0.00016684,2]
[354255379,1740367854040,-554.17,0.00016684,2]
[354255380,1740367854049,-701.66,0.00016684,2]
[354255381,1740367854059,-500.0,0.00016684,2]
[354255382,1740367854068,-500.0,0.00016684,2]
[354255383,1740367854077,-547.25,0.00016684,2]
[354255384,1740367854087,-500.0,0.00016684,2]
[354255385,1740367854097,-500.0,0.00016684,2]
[354255386,1740367854106,-500.0,0.00016684,2]
[354255387,1740367854115,-1026.03,0.00016684,2]
[354255388,1740367854124,-500.0,0.00016684,2]
[354255389,1740367854134,-500.0,0.00016684,2]
[354255390,1740367854143,-517.08981369,0.00016684,2]
[354255391,1740367854152,-659.09,0.00016684,2]
[354255392,1740367854162,-1236.27,0.00016684,2]
[354255393,1740367854171,-580.85,0.00016684,2]
[354255394,1740367854184,-500.0,0.00016684,2]
[354255395,1740367854194,-306.25528113,0.00016684,2]
[354255396,1740367854205,-500.0,0.00016684,2]
[354255397,1740367854215,-892.18,0.00016684,2]
[354255398,1740367854226,-500.0,0.00016684,2]
[354255399,1740367854236,-729.79,0.00016684,2]
[354255400,1740367854249,-705.55,0.00016684,2]
[354255401,1740367854259,-500.0,0.00016684,2]
[354255402,1740367854270,-511.52069794,0.00016684,2]
[354255403,1740367854280,-739.24,0.00016684,2]
[354255404,1740367854290,-500.0,0.00016684,2]
[354255405,1740367854300,-500.0,0.00016684,2]
[354255406,1740367854309,-500.0,0.00016684,2]
[354255407,1740367854323,-500.0,0.00016684,2]
[354255408,1740367854333,-500.0,0.00016684,2]
[354255409,1740367854343,-1126.08,0.00016684,2]
[354255410,1740367854353,-4000.0,0.00016684,2]
[354255411,1740367854364,-500.0,0.00016684,2]
[354255412,1740367854373,-638.19,0.00016684,2]
[354255413,1740367854383,-500.0,0.00016684,2]
[354255414,1740367854392,-691.33,0.00016684,2]
[354255415,1740367854402,-941.68,0.00016684,2]
[354255416,1740367854413,-418.13420986,0.00016684,2]
[354255417,1740367854423,-964.37,0.00016684,2]
[354255418,1740367854438,-567.85,0.00016684,2]
[354255419,1740367854448,-1219.74,0.00016684,2]
[354255420,1740367854459,-500.0,0.00016684,2]
[354255421,1740367854470,-1110.41,0.00016684,2]
[354255422,1740367854481,-1818.7,0.00016684,2]
[354255423,1740367854491,-1325.9,0.00016684,2]
[354255424,1740367854503,-500.0,0.00016684,2]
[354255425,1740367854513,-500.0,0.00016684,2]
[354255426,1740367854524,-500.0,0.00016684,2]
[354255427,1740367854534,-2276.41,0.00016684,2]
[354255428,1740367854546,-709.68,0.00016684,2]
[354255429,1740367854557,-500.0,0.00016684,2]
[354255430,1740367854567,-2974.06,0.00016684,2]
[354255431,1740367854578,-657.37,0.00016684,2]
[354255432,1740367854588,-627.15,0.00016684,2]
[354255433,1740367854599,-1365.92,0.00016684,2]
[354255434,1740367854609,-2327.52,0.00016684,2]
[354255435,1740367854619,-4008.71,0.00016684,2]
[354255436,1740367854629,-500.0,0.00016684,2]
[354255437,1740367854639,-647.71,0.00016684,2]
[354255438,1740367854650,-628.89,0.00016684,2]
[354255439,1740367854660,-1025.29,0.00016684,2]
[354255440,1740367854670,-1810.26,0.00016684,2]
[354255441,1740367854684,-2413.71,0.00016684,2]
[354255442,1740367854694,-700.48,0.00016684,2]
[354255443,1740367854704,-500.0,0.00016684,2]
[354255444,1740367854714,-2382.0,0.00016684,2]
[354255445,1740367854724,-887.2,0.00016684,2]
[354255446,1740367854734,-2559.31,0.00016684,2]
[354255447,1740367854744,-1423.74,0.00016684,2]
[354255448,1740367854754,-1085.16,0.00016684,2]
[354255449,1740367854764,-500.0,0.00016684,2]
[354255450,1740367854774,-2488.19,0.00016684,2]
[354255451,1740367854784,-5667.62,0.00016684,2]
[354255452,1740367854793,-2529.66206247,0.00016684,2]
[354255453,1740368771592,500.0,0.00016438,60]
[354255454,1740368798875,168.36,8.767e-05,2]
[354255461,1740369031922,-300.0,0.00010957,2]
[354255462,1740369031932,-681.711322,0.00010958,2]
[354255463,1740369031942,-156.741372,0.00010958,2]
[354255464,1740369031951,-630.150475,0.00010958,2]
[354255465,1740369031961,-150.336924,0.00010958,2]
[354255466,1740369031971,-160.331541,0.00010958,2]
[354255467,1740369031981,-160.331528,0.00010958,2]
[354255468,1740369031990,-150.336915,0.00010958,2]
[354255469,1740369031999,-160.331528,0.00010958,2]
[354255470,1740369032008,-150.336914,0.00010958,2]
[354255471,1740369032018,-160.331528,0.00010958,2]
[354255472,1740369032027,-681.711322,0.00011041,2]
[354255473,1740369032037,-630.150475,0.00011041,2]
[354255474,1740369032047,-150.0,0.00011096,2]
[354255475,1740369032056,-681.711322,0.00011123,2]
[354255476,1740369032066,-630.150475,0.00011123,2]
[354255477,1740369032075,-681.711322,0.00011205,2]
[354255478,1740369032084,-630.150475,0.00011205,2]
[354255479,1740369032093,-681.711322,0.00011287,2]
[354255480,1740369032102,-630.150475,0.00011287,2]
[354255481,1740369032112,-681.711322,0.00011369,2]
[354255482,1740369032121,-630.150475,0.00011369,2]
[354255483,1740369032131,-420.0,0.00012041,2]
[354255484,1740369032141,-150.0,0.00012053,2]
[354255485,1740369032150,-550.0,0.00013,2]
[354255486,1740369032162,-240.0,0.00013232,2]
[354255487,1740369032171,-1502.26,0.00013238,2]
[354255488,1740369032181,-78.76476538,0.00013671,2]
[354255489,1740369032199,-421.23523462,0.00013671,2]
[354255490,1740369032209,-167.55,0.00014151,2]
[354255491,1740369032219,-250.0,0.00014208,2]
[354255492,1740369032229,-167.37006198,0.00014239,2]
[354255493,1740369032241,-16.14993802,0.00014239,2]
[354255494,1740369032250,-703.04329121,0.0001433,2]
[354255495,1740369032262,-2286.39691092,0.0001433,2]
[354255496,1740369032284,-11976.7755277,0.0001433,2]
[354255497,1740369032346,-871.53695397,0.0001433,2]
[354255511,1740369037836,-8050.0,0.0001433,2]
[354255512,1740369037942,-12.2473162,0.0001433,2]
[354255513,1740369037952,-1858.94,0.00014348,2]
[354255514,1740369037962,-1000.0,0.00014384,2]
[354255515,1740369037972,-2639.56,0.00014472,2]
[354255516,1740369037981,-150.0,0.00014474,2]
[354255517,1740369037991,-200.0,0.0001449,2]
[354255518,1740369038000,-25.85160851,0.0001451,2]
[354255519,1740369038022,-428.41120764,0.0001451,2]
[354255520,1740369038034,-3146.79718385,0.0001451,2]
[354255521,1740369038043,-426.38,0.0001466,2]
[354255522,1740369038053,-389.39,0.00014704,2]
[354255523,1740369038062,-1450.98456687,0.00014781,2]
[354255524,1740369038073,-429.17593305,0.00014781,2]
[354255525,1740369038084,-303.66950008,0.00014781,2]
[354255526,1740369038093,-19.40612334,0.00015,2]
[354255527,1740369038108,-580.59387666,0.00015,2]
[354255528,1740369038118,-150.0,0.00015185,2]
[354255529,1740369038127,-458.39,0.00015185,2]
[354255530,1740369038136,-150.0,0.00015214,2]
[354255531,1740369038145,-1502.26,0.00015502,2]
[354255532,1740369038154,-1070.96908913,0.00015631,2]
[354255533,1740369038163,-1000.0,0.00016182,2]
[354255534,1740369038173,-318.88117717,0.00016338,2]
[354255535,1740369038182,-169.44236435,0.00016338,2]
[354255536,1740369038191,-2753.1683,0.00016338,2]
[354255537,1740369038201,-1590.3842,0.00016338,2]
[354255538,1740369038210,-152.6182211,0.0001635,2]
[354255540,1740369038219,-150.0,0.00016353,2]
[354255542,1740369038229,-500.0,0.00016356,2]
[354255544,1740369038238,-168.30173293,0.00016393,2]
[354255546,1740369038247,-150.0,0.00016395,2]
[354255548,1740369038257,-200.0,0.000164,5]
[354255550,1740369038267,-150.0,0.00016406,2]
[354255552,1740369038276,-151.29,0.00016411,2]
[354255554,1740369038284,-986.97,0.00016411,2]
[354255556,1740369038294,-150.0,0.00016415,2]
[354255558,1740369038303,-150.0,0.00016417,2]
[354255560,1740369038312,-150.0,0.00016419,2]
[354255562,1740369038321,-1000.0,0.00016428,2]
[354255564,1740369038331,-12671.2512861,0.00016428,2]
[354255566,1740369038340,-1202.22,0.00016428,2]
[354255568,1740369038351,-150.0,0.00016432,2]
[354255570,1740369038360,-500.0,0.00016437,2]
[354255572,1740369038370,-509.55983522,0.00016437,2]
[354255574,1740369038381,-500.0,0.00016437,2]
[354255577,1740369038392,-500.0,0.00016437,2]
[354255580,1740369038403,-500.0,0.00016437,2]
[354255583,1740369038413,-500.0,0.00016437,2]
[354255586,1740369038425,-500.0,0.00016437,2]
[354255588,1740369038435,-412.21702535,0.00016437,2]
[354255590,1740369038444,-500.0,0.00016437,2]
[354255592,1740369038453,-500.5058652,0.00016438,2]
[354255594,1740369038463,-512.2,0.00016438,2]
[354255596,1740369038472,-500.0,0.00016438,2]
[354255598,1740369038481,-681.711322,0.00016438,2]
[354255600,1740369038490,-468.43354774,0.00016438,2]
[354255602,1740369038500,-511.91,0.00016438,2]
[354255604,1740369038509,-500.0,0.00016438,2]
[354255606,1740369038518,-630.150475,0.00016438,2]
[354255608,1740369038527,-548.51,0.00016438,2]
[354255610,1740369038536,-500.0,0.00016438,2]
[354255612,1740369038545,-500.0,0.00016438,2]
[354255614,1740369038554,-500.0,0.00016438,2]
[354255616,1740369038564,-500.0,0.00016438,2]
[354255618,1740369038573,-500.0,0.00016438,2]
[354255620,1740369038583,-500.0,0.00016438,2]
[354255622,1740369038592,-500.0,0.00016438,2]
[354255624,1740369038602,-508.19,0.00016438,2]
[354255626,1740369038611,-500.0,0.00016438,2]
[354255628,1740369038620,-500.0,0.00016438,2]
[354255630,1740369038629,-500.0,0.00016438,2]
[354255632,1740369038638,-183.83281793,0.00016438,2]
[354255634,1740369038647,-500.0,0.00016438,2]
[354255636,1740369038657,-500.0,0.00016438,2]
[354255638,1740369038667,-500.0,0.00016438,2]
[354255640,1740369038678,-500.0,0.00016438,2]
[354255642,1740369038687,-500.0,0.00016438,2]
[354255644,1740369038697,-500.0,0.00016438,2]
[354255646,1740369038706,-500.0,0.00016438,2]
[354255648,1740369038716,-500.0,0.00016438,2]
[354255650,1740369038726,-500.0,0.00016438,2]
[354255652,1740369038736,-554.67,0.00016438,2]
[354255654,1740369038745,-500.0,0.00016438,2]
[354255656,1740369038755,-547.66881715,0.00016438,2]
[354255658,1740369038764,-500.0,0.00016438,2]
[354255660,1740369038773,-593.86,0.00016438,2]
[354255662,1740369038782,-500.0,0.00016438,2]
[354255664,1740369038792,-500.0,0.00016438,2]
[354255666,1740369038801,-500.0,0.00016438,2]
[354255668,1740369038812,-623.55,0.00016438,2]
[354255670,1740369038821,-500.0,0.00016438,2]
[354255672,1740369038831,-500.0,0.00016438,2]
[354255674,1740369038842,-500.0,0.00016438,2]
[354255676,1740369038851,-520.15,0.00016438,2]
[354255678,1740369038861,-500.0,0.00016438,2]
[354255680,1740369038871,-503.21979782,0.00016438,2]
[354255682,1740369038881,-504.02475459,0.00016438,2]
[354255684,1740369038891,-500.0,0.00016438,2]
[354255686,1740369038900,-576.34,0.00016438,2]
[354255688,1740369038910,-500.0,0.00016438,2]
[354255690,1740369038920,-500.0,0.00016438,2]
[354255692,1740369038930,-500.0,0.00016438,2]
[354255694,1740369038940,-500.0,0.00016438,2]
[354255696,1740369038950,-500.0,0.00016438,2]
[354255698,1740369038960,-500.0,0.00016438,2]
[354255700,1740369038969,-500.0,0.00016438,2]
[354255702,1740369038978,-635.72746604,0.00016438,2]
[354255704,1740369038988,-1237.25,0.00016438,2]
[354255706,1740369038997,-500.0,0.00016438,2]
[354255708,1740369039006,-500.0,0.00016438,2]
[354255710,1740369039016,-1148.3,0.00016438,2]
[354255712,1740369039026,-500.0,0.00016438,2]
[354255714,1740369039036,-610.73,0.00016438,2]
[354255716,1740369039046,-1118.42,0.00016438,2]
[354255718,1740369039055,-500.0,0.00016438,2]
[354255720,1740369039064,-500.0,0.00016438,2]
[354255722,1740369039074,-972.65,0.00016438,2]
[354255724,1740369039084,-500.0,0.00016438,2]
[354255726,1740369039093,-500.0,0.00016438,2]
[354255728,1740369039102,-1242.67,0.00016438,2]
[354255730,1740369039112,-500.0,0.00016438,2]
[354255732,1740369039121,-500.0,0.00016438,2]
[354255734,1740369039131,-500.0,0.00016438,2]
[354255736,1740369039140,-500.0,0.00016438,2]
[354255738,1740369039150,-814.58,0.00016438,2]
[354255740,1740369039159,-500.0,0.00016438,2]
[354255742,1740369039170,-500.0,0.00016438,2]
[354255744,1740369039179,-500.0,0.00016438,2]
[354255746,1740369039188,-564.14,0.00016438,2]
[354255748,1740369039197,-740.74,0.00016438,2]
[354255750,1740369039207,-783.89,0.00016438,2]
[354255752,1740369039217,-720.77,0.00016438,2]
[354255754,1740369039226,-612.56,0.00016438,2]
[354255756,1740369039235,-1238.8,0.00016438,2]
[354255758,1740369039244,-1120.9,0.00016438,2]
[354255760,1740369039253,-500.0,0.00016438,2]
[354255762,1740369039262,-471.38755828,0.00016438,2]
[354255764,1740369039271,-500.0,0.00016438,2]
[354255765,1740369039281,-713.76,0.00016438,2]
[354255768,1740369039290,-452.68605346,0.00016438,2]
[354255769,1740369039299,-500.0,0.00016438,2]
[354255771,1740369039308,-500.0,0.00016438,2]
[354255773,1740369039317,-500.0,0.00016438,2]
[354255775,1740369039326,-500.0,0.00016438,2]
[354255777,1740369039336,-1113.49,0.00016438,2]
[354255779,1740369039345,-500.0,0.00016438,2]
[354255781,1740369039355,-539.76,0.00016438,2]
[354255784,1740369039364,-500.0,0.00016438,2]
[354255785,1740369039374,-500.0,0.00016438,2]
[354255787,1740369039383,-500.0,0.00016438,2]
[354255789,1740369039392,-662.22,0.00016438,2]
[354255792,1740369039401,-652.74,0.00016438,2]
[354255794,1740369039412,-500.0,0.00016438,2]
[354255796,1740369039424,-500.0,0.00016438,2]
[354255798,1740369039433,-500.0,0.00016438,2]
[354255800,1740369039442,-500.0,0.00016438,2]
[354255802,1740369039452,-500.0,0.00016438,2]
[354255804,1740369039461,-500.0,0.00016438,2]
[354255806,1740369039470,-539.74,0.00016438,2]
[354255808,1740369039479,-498.50580441,0.00016438,2]
[354255810,1740369039488,-500.0,0.00016438,2]
[354255812,1740369039497,-500.0,0.00016438,2]
[354255814,1740369039506,-676.6,0.00016438,2]
[354255816,1740369039515,-511.40027813,0.00016438,2]
[354255818,1740369039524,-542.53,0.00016438,2]
[354255820,1740369039533,-545.1,0.00016438,2]
[354255822,1740369039542,-500.0,0.00016438,2]
[354255824,1740369039552,-500.0,0.00016438,2]
[354255826,1740369039562,-1083.0,0.00016438,2]
[354255828,1740369039572,-498.57056652,0.00016438,2]
[354255830,1740369039581,-500.0,0.00016438,2]
[354255832,1740369039591,-500.0,0.00016438,2]
[354255834,1740369039600,-508.13898757,0.00016438,2]
[354255836,1740369039609,-500.0,0.00016438,2]
[354255838,1740369039619,-500.0,0.00016438,2]
[354255840,1740369039628,-329.9952837,0.00016438,2]
[354255842,1740369039637,-504.69,0.00016438,2]
[354255844,1740369039647,-500.0,0.00016438,2]
[354255846,1740369039657,-995.73,0.00016438,2]
[354255848,1740369039668,-500.0,0.00016438,2]
[354255850,1740369039679,-689.85,0.00016438,2]
[354255852,1740369039688,-939.9,0.00016438,2]
[354255854,1740369039697,-611.03932591,0.00016438,2]
[354255856,1740369039708,-610.91,0.00016438,2]
[354255858,1740369039717,-498.69336866,0.00016438,2]
[354255860,1740369039726,-568.4,0.00016438,2]
[354255862,1740369039735,-594.41,0.00016438,2]
[354255864,1740369039745,-320.52724045,0.00016438,2]
[354255865,1740369039754,-500.0,0.00016438,2]
[354255867,1740369039763,-573.88,0.00016438,2]
[354255869,1740369039772,-500.0,0.00016438,2]
[354255871,1740369039781,-500.0,0.00016438,2]
[354255873,1740369039790,-500.0,0.00016438,2]
[354255875,1740369039799,-907.44,0.00016438,2]
[354255877,1740369039809,-500.0,0.00016438,2]
[354255879,1740369039818,-687.18,0.00016438,2]
[354255882,1740369039828,-797.86,0.00016438,2]
[354255883,1740369039837,-708.1,0.00016438,2]
[354255887,1740369039847,-500.0,0.00016438,2]
[354255888,1740369039857,-500.0,0.00016438,2]
[354255891,1740369039866,-500.0,0.00016438,2]
[354255894,1740369039875,-922.45,0.00016438,2]
[354255897,1740369039884,-604.1,0.00016438,2]
[354255900,1740369039894,-642.85,0.00016438,2]
[354255905,1740369039903,-502.74,0.00016438,2]
[354255908,1740369039913,-617.22,0.00016438,2]
[354255910,1740369039925,-500.0,0.00016438,2]
[354255912,1740369039934,-500.0,0.00016438,2]
[354255915,1740369039943,-626.24,0.00016438,2]
[354255917,1740369039953,-500.0,0.00016438,2]
[354255919,1740369039962,-500.0,0.00016438,2]
[354255921,1740369039971,-500.0,0.00016438,2]
[354255923,1740369039981,-500.0,0.00016438,2]
[354255925,1740369039991,-500.0,0.00016438,2]
[354255927,1740369040000,-621.03,0.00016438,2]
[354255929,1740369040009,-500.0,0.00016438,2]
[354255931,1740369040018,-585.52,0.00016438,2]
[354255933,1740369040027,-500.0,0.00016438,2]
[354255935,1740369040036,-500.0,0.00016438,2]
[354255937,1740369040046,-500.0,0.00016438,2]
[354255939,1740369040055,-532.49,0.00016438,2]
[354255941,1740369040064,-670.46,0.00016438,2]
[354255943,1740369040073,-544.78,0.00016438,2]
[354255945,1740369040083,-504.2160406,0.00016438,2]
[354255947,1740369040092,-500.0,0.00016438,2]
[354255949,1740369040101,-500.0,0.00016438,2]
[354255951,1740369040110,-500.0,0.00016438,2]
[354255953,1740369040119,-500.0,0.00016438,2]
[354255955,1740369040129,-522.5,0.00016438,2]
[354255957,1740369040138,-500.0,0.00016438,2]
[354255959,1740369040147,-500.0,0.00016438,2]
[354255961,1740369040156,-500.0,0.00016438,2]
[354255963,1740369040166,-500.0,0.00016438,2]
[354255965,1740369040177,-500.0,0.00016438,2]
[354255967,1740369040186,-500.0,0.00016438,2]
[354255969,1740369040195,-500.0,0.00016438,2]
[354255971,1740369040206,-968.39,0.00016438,2]
[354255974,1740369040217,-809.22,0.00016438,2]
[354255976,1740369040226,-500.0,0.00016438,2]
[354255978,1740369040236,-500.0,0.00016438,2]
[354255979,1740369040245,-500.0,0.00016438,2]
[354255981,1740369040255,-930.91,0.00016438,2]
[354255983,1740369040265,-500.0,0.00016438,2]
[354255986,1740369040275,-408.3994638,0.00016438,2]
[354255987,1740369040285,-751.97,0.00016438,2]
[354255988,1740369040293,-521.43,0.00016438,2]
[354255989,1740369040303,-500.0,0.00016438,2]
[354255990,1740369040311,-852.22,0.00016438,2]
[354255991,1740369040320,-542.9,0.00016438,2]
[354255992,1740369040329,-573.5,0.00016438,2]
[354255993,1740369040338,-377.1325218,0.00016438,2]
[354255994,1740369040347,-751.18,0.00016438,2]
[354255995,1740369040356,-500.0,0.00016438,2]
[354255996,1740369040366,-518.55,0.00016438,2]
[354255998,1740369040375,-621.61,0.00016438,2]
[354256000,1740369040384,-500.0,0.00016438,2]
[354256002,1740369040398,-500.0,0.00016438,2]
[354256005,1740369040407,-500.0,0.00016438,2]
[354256006,1740369040417,-830.38,0.00016438,2]
[354256008,1740369040427,-1218.55,0.00016438,2]
[354256010,1740369040436,-370.99676826,0.00016438,2]
[354256012,1740369040446,-320.44935903,0.00016438,2]
[354256015,1740369040456,-498.43810308,0.00016438,2]
[354256016,1740369040465,-500.0,0.00016438,2]
[354256019,1740369040475,-500.0,0.00016438,2]
[354256021,1740369040483,-500.0,0.00016438,2]
[354256022,1740369040492,-516.71843319,0.00016438,2]
[354256024,1740369040501,-1220.75,0.00016438,2]
[354256026,1740369040511,-855.02,0.00016438,2]
[354256028,1740369040519,-500.0,0.00016438,2]
[354256031,1740369040529,-501.91193433,0.00016438,2]
[354256033,1740369040539,-671.26,0.00016438,2]
[354256035,1740369040547,-500.0,0.00016438,2]
[354256036,1740369040557,-500.0,0.00016438,2]
[354256038,1740369040566,-529.46,0.00016438,2]
[354256041,1740369040576,-566.91,0.00016438,2]
[354256042,1740369040585,-500.0,0.00016438,2]
[354256044,1740369040594,-369.38181989,0.00016438,2]
[354256046,1740369040603,-1226.35,0.00016438,2]
[354256049,1740369040614,-504.88,0.00016438,2]
[354256051,1740369040623,-500.0,0.00016438,2]
[354256052,1740369040633,-500.0,0.00016438,2]
[354256054,1740369040642,-500.0,0.00016438,2]
[354256057,1740369040651,-539.75301084,0.00016438,2]
[354256059,1740369040660,-500.0,0.00016438,2]
[354256062,1740369040673,-498.0268334,0.00016438,2]
[354256064,1740369040682,-810.35,0.00016438,2]
[354256066,1740369040691,-500.0,0.00016438,2]
[354256068,1740369040701,-677.12,0.00016438,2]
[354256069,1740369040710,-1052.62,0.00016438,2]
[354256071,1740369040719,-706.99,0.00016438,2]
[354256073,1740369040728,-501.13455649,0.00016438,2]
[354256075,1740369040738,-500.0,0.00016438,2]
[354256077,1740369040748,-500.0,0.00016438,2]
[354256079,1740369040758,-501.08063303,0.00016438,2]
[354256081,1740369040767,-500.0,0.00016438,2]
[354256083,1740369040775,-500.0,0.00016438,2]
[354256085,1740369040784,-500.0,0.00016438,2]
[354256110,1740369040995,-500.0,0.00016438,2]
[354256112,1740369041007,-552.76,0.00016438,2]
[354256114,1740369041016,-504.43565492,0.00016438,2]
[354256116,1740369041026,-500.0,0.00016438,2]
[354256118,1740369041035,-662.07,0.00016438,2]
[354256120,1740369041044,-500.0,0.00016438,2]
[354256122,1740369041053,-500.0,0.00016438,2]
[354256124,1740369041063,-513.42802773,0.00016438,2]
[354256126,1740369041072,-500.0,0.00016438,2]
[354256128,1740369041081,-500.0,0.00016438,2]
[354256130,1740369041090,-500.0,0.00016438,2]
[354256132,1740369041099,-502.83531159,0.00016438,2]
[354256134,1740369041108,-500.0,0.00016438,2]
[354256136,1740369041118,-500.0,0.00016438,2]
[354256138,1740369041128,-500.60379443,0.00016438,2]
[354256140,1740369041137,-503.40333778,0.00016438,2]
[354256142,1740369041146,-658.17,0.00016438,2]
[354256144,1740369041155,-500.0,0.00016438,2]
[354256146,1740369041164,-500.0,0.00016438,2]
[354256148,1740369041176,-1027.93,0.00016438,2]
[354256150,1740369041185,-500.0,0.00016438,2]
[354256152,1740369041194,-503.14490813,0.00016438,2]
[354256154,1740369041204,-500.0,0.00016438,2]
[354256156,1740369041213,-500.0,0.00016438,2]
[354256158,1740369041222,-499.92089697,0.00016438,2]
[354256160,1740369041231,-500.0,0.00016438,2]
[354256161,1740369041241,-1186.45,0.00016438,2]
[354256163,1740369041250,-500.0,0.00016438,2]
[354256165,1740369041259,-502.0912985,0.00016438,2]
[354256167,1740369041268,-500.0,0.00016438,2]
[354256169,1740369041278,-500.0,0.00016438,2]
[354256171,1740369041286,-500.0,0.00016438,2]
[354256173,1740369041295,-3221.68,0.00016438,2]
[354256175,1740369041305,-500.0,0.00016438,2]
[354256177,1740369041314,-659.37,0.00016438,2]
[354256179,1740369041324,-502.46906015,0.00016438,2]
[354256181,1740369041333,-588.0024886,0.00016438,2]
[354256183,1740369041343,-500.0,0.00016438,2]
[354256185,1740369041353,-1447.18,0.00016438,2]
[354256187,1740369041363,-784.74,0.00016438,2]
[354256189,1740369041373,-500.0,0.00016438,2]
[354256192,1740369041383,-9284.24,0.00016438,2]
[354256194,1740369041393,-574.2,0.00016438,2]
[354256195,1740369041402,-500.0,0.00016438,2]
[354256197,1740369041411,-500.0,0.00016438,2]
[354256199,1740369041421,-500.86846943,0.00016438,2]
[354256200,1740369041430,-500.0,0.00016438,2]
[354256202,1740369041439,-1547.54,0.00016438,2]
[354256204,1740369041448,-500.0,0.00016438,2]
[354256206,1740369041458,-578.84367291,0.00016438,2]
[354256207,1740369041467,-500.0,0.00016438,2]
[354256209,1740369041476,-365.90807996,0.00016438,2]
[354256211,1740369041485,-500.0,0.00016438,2]